fUSD/lending_fUSD_20260527
["ID","MTS","AMOUNT","RATE_DAILY","PERIOD"]
[423145591,1779892278000,-500.0,0.00034452,60]
[423145592,1779892278000,-418.0,0.00034452,60]
[423145594,1779892278000,-418.0,0.00034452,60]
[423145595,1779892278000,-500.0,0.00034452,60]
[423145596,1779892278000,-418.0,0.00034452,60]
[423145588,1779892278000,-418.0,0.00034452,60]
[423145589,1779892278000,-500.0,0.00034452,60]
[423145593,1779892278000,-500.0,0.00034452,60]
[423145587,1779892278000,-500.0,0.00034452,60]
[423145590,1779892278000,-418.0,0.00034452,60]
[423145600,1779892278000,-418.0,0.00034452,60]
[423145602,1779892278000,-418.0,0.00034452,60]
[423145597,1779892278000,-418.0,0.00034452,60]
[423145603,1779892278000,-418.0,0.00034452,60]
[423145599,1779892278000,-418.0,0.00034452,60]
[423145604,1779892278000,-418.0,0.00034452,60]
[423145598,1779892278000,-541.74304789,0.00034452,60]
[423145601,1779892278000,-418.0,0.00034452,60]
[423145608,1779892278000,-418.0,0.00034452,60]
[423145606,1779892278000,-418.0,0.00034452,60]
[423145607,1779892278000,-418.0,0.00034452,60]
[423145579,1779892278000,-500.0,0.00034452,60]
[423145582,1779892278000,-418.0,0.00034452,60]
[423145605,1779892278000,-418.0,0.00034452,60]
[423145583,1779892278000,-418.0,0.00034452,60]
[423145553,1779892278000,-1360.8,0.00034182,7]
[423145552,1779892278000,-1000.0,0.00034115,10]
[423145560,1779892278000,-5733.66,0.000344,14]
[423145559,1779892278000,-190.97,0.000344,30]
[423145561,1779892278000,-500.0,0.00034452,60]
[423145566,1779892278000,-500.0,0.00034452,120]
[423145569,1779892278000,-500.0,0.00034452,120]
[423145586,1779892278000,-418.0,0.00034452,60]
[423145564,1779892278000,-402.89210719,0.00034452,60]
[423145567,1779892278000,-500.0,0.00034452,60]
[423145562,1779892278000,-500.0,0.00034452,60]
[423145563,1779892278000,-500.0,0.00034452,60]
[423145568,1779892278000,-500.0,0.00034452,60]
[423145571,1779892278000,-150.0,0.00034452,60]
[423145570,1779892278000,-418.0,0.00034452,60]
[423145573,1779892278000,-430.75105378,0.00034452,60]
[423145572,1779892278000,-500.0,0.00034452,60]
[423145576,1779892278000,-500.0,0.00034452,60]
[423145577,1779892278000,-418.0,0.00034452,60]
[423145575,1779892278000,-150.0,0.00034452,60]
[423145574,1779892278000,-500.0,0.00034452,120]
[423145580,1779892278000,-418.0,0.00034452,60]
[423145581,1779892278000,-532.15488729,0.00034452,60]
[423145565,1779892278000,-500.0,0.00034452,60]
[423145578,1779892278000,-158.10865426,0.00034452,60]
[423145667,1779892279000,-500.0,0.00034452,60]
[423145662,1779892279000,-531.57193254,0.00034452,60]
[423145654,1779892279000,-294.84197151,0.00034452,60]
[423145650,1779892279000,-500.0,0.00034452,60]
[423145668,1779892279000,-500.0,0.00034452,60]
[423145629,1779892279000,-798.0,0.00034452,60]
[423145630,1779892279000,-500.0,0.00034452,60]
[423145624,1779892279000,-500.0,0.00034452,60]
[423145636,1779892279000,-798.0,0.00034452,60]
[423145628,1779892279000,-500.0,0.00034452,60]
[423145658,1779892279000,-798.0,0.00034452,60]
[423145665,1779892279000,-798.0,0.00034452,60]
[423145670,1779892279000,-150.0,0.00034452,60]
[423145660,1779892279000,-500.0,0.00034452,60]
[423145661,1779892279000,-798.0,0.00034452,60]
[423145664,1779892279000,-798.0,0.00034452,60]
[423145675,1779892279000,-500.0,0.00034452,60]
[423145633,1779892279000,-585.82824268,0.00034452,60]
[423145643,1779892279000,-500.0,0.00034452,60]
[423145649,1779892279000,-798.0,0.00034452,60]
[423145651,1779892279000,-500.0,0.00034452,60]
[423145674,1779892279000,-150.0,0.00034452,60]
[423145647,1779892279000,-500.0,0.00034452,60]
[423145635,1779892279000,-500.0,0.00034452,60]
[423145614,1779892279000,-798.0,0.00034452,60]
[423145648,1779892279000,-500.0,0.00034452,60]
[423145659,1779892279000,-500.0,0.00034452,60]
[423145613,1779892279000,-500.0,0.00034452,60]
[423145609,1779892279000,-418.0,0.00034452,60]
[423145611,1779892279000,-798.0,0.00034452,60]
[423145610,1779892279000,-423.92063898,0.00034452,60]
[423145612,1779892279000,-798.0,0.00034452,60]
[423145617,1779892279000,-500.0,0.00034452,60]
[423145618,1779892279000,-798.0,0.00034452,60]
[423145622,1779892279000,-500.0,0.00034452,60]
[423145619,1779892279000,-500.0,0.00034452,60]
[423145616,1779892279000,-500.0,0.00034452,60]
[423145621,1779892279000,-798.0,0.00034452,60]
[423145620,1779892279000,-500.0,0.00034452,60]
[423145615,1779892279000,-798.0,0.00034452,60]
[423145625,1779892279000,-500.0,0.00034452,60]
[423145637,1779892279000,-150.0,0.00034452,2]
[423145656,1779892279000,-500.0,0.00034452,60]
[423145669,1779892279000,-622.5845227,0.00034452,60]
[423145652,1779892279000,-798.0,0.00034452,60]
[423145655,1779892279000,-500.0,0.00034452,60]
[423145640,1779892279000,-508.00396675,0.00034452,60]
[423145644,1779892279000,-798.0,0.00034452,60]
[423145645,1779892279000,-381.68311281,0.00034452,60]
[423145657,1779892279000,-500.0,0.00034452,60]
[423145627,1779892279000,-500.0,0.00034452,60]
[423145634,1779892279000,-500.0,0.00034452,60]
[423145638,1779892279000,-500.0,0.00034452,60]
[423145700,1779892279000,-492.0,0.00034452,60]
[423145697,1779892279000,-492.0,0.00034452,60]
[423145695,1779892279000,-180.65416299,0.00034452,60]
[423145694,1779892279000,-150.0,0.00034452,60]
[423145696,1779892279000,-492.0,0.00034452,60]
[423145712,1779892279000,-500.0,0.00034452,60]
[423145679,1779892279000,-500.0,0.00034452,60]
[423145682,1779892279000,-500.0,0.00034452,60]
[423145685,1779892279000,-500.0,0.00034452,60]
[423145693,1779892279000,-150.0,0.00034452,60]
[423145680,1779892279000,-500.0,0.00034452,60]
[423145692,1779892279000,-798.0,0.00034452,60]
[423145689,1779892279000,-500.0,0.00034452,60]
[423145708,1779892279000,-821.36596027,0.00034452,60]
[423145705,1779892279000,-492.0,0.00034452,60]
[423145681,1779892279000,-500.0,0.00034452,60]
[423145687,1779892279000,-500.0,0.00034452,60]
[423145699,1779892279000,-500.0,0.00034452,60]
[423145691,1779892279000,-172.95795463,0.00034452,60]
[423145683,1779892279000,-218.39893225,0.00034452,60]
[423145704,1779892279000,-492.0,0.00034452,60]
[423145678,1779892279000,-500.0,0.00034452,60]
[423145686,1779892279000,-150.0,0.00034452,60]
[423145632,1779892279000,-798.0,0.00034452,60]
[423145703,1779892279000,-492.0,0.00034452,60]
[423145688,1779892279000,-164.66146701,0.00034452,60]
[423145684,1779892279000,-500.0,0.00034452,60]
[423145690,1779892279000,-500.0,0.00034452,60]
[423145639,1779892279000,-798.0,0.00034452,60]
[423145701,1779892279000,-500.0,0.00034452,60]
[423145642,1779892279000,-798.0,0.00034452,60]
[423145663,1779892279000,-150.0,0.00034452,2]
[423145626,1779892279000,-798.0,0.00034452,60]
[423145631,1779892279000,-500.0,0.00034452,60]
[423145673,1779892279000,-500.0,0.00034452,60]
[423145676,1779892279000,-798.0,0.00034452,60]
[423145677,1779892279000,-171.50846167,0.00034452,60]
[423145671,1779892279000,-150.0,0.00034452,60]
[423145653,1779892279000,-500.0,0.00034452,60]
[423145666,1779892279000,-500.0,0.00034452,60]
[423145623,1779892279000,-798.0,0.00034452,60]
[423145641,1779892279000,-500.0,0.00034452,60]
[423145646,1779892279000,-798.0,0.00034452,60]
[423145672,1779892279000,-150.0,0.00034452,60]
[423145702,1779892279000,-267.19449444,0.00034452,60]
[423145707,1779892279000,-500.0,0.00034452,60]
[423145709,1779892279000,-492.0,0.00034452,60]
[423145698,1779892279000,-492.0,0.00034452,60]
[423145713,1779892279000,-500.0,0.00034452,60]
[423145706,1779892279000,-492.0,0.00034452,60]
[423145710,1779892279000,-500.0,0.00034452,60]
[423145711,1779892279000,-492.0,0.00034452,60]
[423145740,1779892280000,-492.0,0.00034452,60]
[423145730,1779892280000,-500.0,0.00034452,60]
[423145721,1779892280000,-500.0,0.00034452,60]
[423145754,1779892280000,-158.71,0.00034485,7]
[423145732,1779892280000,-500.0,0.00034452,60]
[423145727,1779892280000,-500.0,0.00034452,60]
[423145726,1779892280000,-492.0,0.00034452,60]
[423145752,1779892280000,-511.7163428,0.00034452,60]
[423145715,1779892280000,-492.0,0.00034452,60]
[423145720,1779892280000,-492.0,0.00034452,60]
[423145750,1779892280000,-150.0,0.00034452,60]
[423145728,1779892280000,-500.0,0.00034452,60]
[423145729,1779892280000,-492.0,0.00034452,60]
[423145762,1779892280000,-192.18,0.000347,7]
[423145751,1779892280000,-184.48877466,0.00034452,60]
[423145768,1779892280000,-170.0,0.00034725,30]
[423145781,1779892280000,-778.01152156,0.00035,120]
[423145773,1779892280000,-1040.0,0.00034753,30]
[423145766,1779892280000,-254.0,0.00034725,30]
[423145767,1779892280000,-471.0,0.00034725,30]
[423145771,1779892280000,-218.0,0.00034725,30]
[423145776,1779892280000,-159.19,0.00034823,30]
[423145775,1779892280000,-1500.0,0.00034795,2]
[423145764,1779892280000,-158.0,0.00034725,30]
[423145763,1779892280000,-183.0,0.00034725,30]
[423145756,1779892280000,-166.51,0.00034486,7]
[423145735,1779892280000,-492.0,0.00034452,60]
[423145741,1779892280000,-150.0,0.00034452,60]
[423145724,1779892280000,-492.0,0.00034452,60]
[423145746,1779892280000,-492.0,0.00034452,60]
[423145774,1779892280000,-190.0,0.00034753,30]
[423145725,1779892280000,-500.0,0.00034452,60]
[423145722,1779892280000,-492.0,0.00034452,60]
[423145748,1779892280000,-150.0,0.00034452,60]
[423145759,1779892280000,-152.0,0.00034598,120]
[423145734,1779892280000,-439.48495491,0.00034452,60]
[423145739,1779892280000,-289.47724845,0.00034452,60]
[423145731,1779892280000,-500.0,0.00034452,60]
[423145758,1779892280000,-513.0,0.00034551,12]
[423145714,1779892280000,-492.0,0.00034452,60]
[423145723,1779892280000,-500.0,0.00034452,60]
[423145716,1779892280000,-500.0,0.00034452,60]
[423145737,1779892280000,-492.0,0.00034452,60]
[423145745,1779892280000,-150.0,0.00034452,60]
[423145747,1779892280000,-150.0,0.00034452,60]
[423145743,1779892280000,-189.78723983,0.00034452,60]
[423145753,1779892280000,-4309.17,0.00034456,30]
[423145719,1779892280000,-500.0,0.00034452,60]
[423145736,1779892280000,-150.0,0.00034452,60]
[423145738,1779892280000,-150.0,0.00034452,60]
[423145744,1779892280000,-492.0,0.00034452,60]
[423145757,1779892280000,-206.41,0.000345,30]
[423145749,1779892280000,-150.0,0.00034452,60]
[423145755,1779892280000,-256.03,0.00034485,30]
[423145718,1779892280000,-492.0,0.00034452,60]
[423145742,1779892280000,-150.0,0.00034452,60]
[423145717,1779892280000,-500.0,0.00034452,60]
[423145733,1779892280000,-500.0,0.00034452,60]
[423145779,1779892280000,-153.62,0.00034849,30]
[423145801,1779892280000,-1382.569618,0.00035,7]
[423145761,1779892280000,-468.0,0.00034682,2]
[423145806,1779892280000,-410.54260806,0.00035158,3]
[423145818,1779892280000,-1155.60166761,0.00035508,2]
[423145817,1779892280000,-933.69403119,0.00035504,2]
[423145810,1779892280000,-9999.99,0.00035455,2]
[423145824,1779892280000,-468.0,0.00035549,2]
[423145807,1779892280000,-158.71,0.00035198,2]
[423145821,1779892280000,-215.14439636,0.0003551,2]
[423145823,1779892280000,-215.14439636,0.0003551,2]
[423145802,1779892280000,-1382.569618,0.00035,7]
[423145805,1779892280000,-150.0,0.00035031,30]
[423145826,1779892280000,-300.0,0.00035586,2]
[423145831,1779892280000,-300.0,0.00035586,2]
[423145811,1779892280000,-776.02,0.00035503,2]
[423145813,1779892280000,-2143.69761375,0.00035504,2]
[423145828,1779892280000,-480.03920667,0.00035586,2]
[423145829,1779892280000,-499.37863486,0.00035586,2]
[423145819,1779892280000,-215.14439636,0.0003551,2]
[423145808,1779892280000,-1000.0,0.00035303,14]
[423145820,1779892280000,-215.14439636,0.0003551,2]
[423145804,1779892280000,-245.80659135,0.00035031,30]
[423145825,1779892280000,-1000.0,0.00035578,14]
[423145827,1779892280000,-300.0,0.00035586,2]
[423145832,1779892280000,-300.0,0.00035586,2]
[423145799,1779892280000,-1382.569618,0.00035,7]
[423145803,1779892280000,-500.0,0.00035017,29]
[423145800,1779892280000,-1382.569618,0.00035,7]
[423145770,1779892280000,-364.0,0.00034725,30]
[423145815,1779892280000,-370.65417125,0.00035504,2]
[423145816,1779892280000,-263.39072739,0.00035504,2]
[423145822,1779892280000,-215.14439636,0.0003551,2]
[423145798,1779892280000,-151.0,0.00035,7]
[423145809,1779892280000,-206.41,0.0003544,2]
[423145783,1779892280000,-207.28396013,0.00035,120]
[423145780,1779892280000,-206.41,0.0003497,7]
[423145760,1779892280000,-162.59,0.00034651,2]
[423145778,1779892280000,-168.51,0.00034833,7]
[423145777,1779892280000,-168.52,0.00034833,2]
[423145765,1779892280000,-254.0,0.00034725,30]
[423145782,1779892280000,-4370.74904221,0.00035,7]
[423145772,1779892280000,-189.0,0.00034753,30]
[423145792,1779892280000,-1183.951803,0.00035,7]
[423145794,1779892280000,-151.0,0.00035,7]
[423145786,1779892280000,-199.66518691,0.00035,30]
[423145784,1779892280000,-205.77743576,0.00035,120]
[423145769,1779892280000,-157.0,0.00034725,30]
[423145793,1779892280000,-1183.951803,0.00035,7]
[423145790,1779892280000,-1183.951803,0.00035,7]
[423145833,1779892280000,-493.38669858,0.00035586,2]
[423145814,1779892280000,-237.06,0.00035504,30]
[423145796,1779892280000,-151.0,0.00035,7]
[423145797,1779892280000,-151.0,0.00035,7]
[423145812,1779892280000,-150.0,0.00035504,7]
[423145830,1779892280000,-300.0,0.00035586,2]
[423145787,1779892280000,-183.27090891,0.00035,2]
[423145795,1779892280000,-151.0,0.00035,7]
[423145789,1779892280000,-3637.867497,0.00035,2]
[423145785,1779892280000,-713.25975205,0.00035,120]
[423145788,1779892280000,-5001.62399452,0.00035,30]
[423145791,1779892280000,-1183.951803,0.00035,7]
[423145913,1779892281000,-727.07827244,0.00035586,2]
[423145868,1779892281000,-300.09384644,0.00035586,2]
[423145907,1779892281000,-300.0,0.00035586,2]
[423145897,1779892281000,-300.0,0.00035586,2]
[423145883,1779892281000,-452.52893397,0.00035586,2]
[423145888,1779892281000,-300.0,0.00035586,2]
[423145871,1779892281000,-310.02493426,0.00035586,2]
[423145866,1779892281000,-865.6208675,0.00035586,2]
[423145912,1779892281000,-894.65434383,0.00035586,2]
[423145847,1779892281000,-302.21937029,0.00035586,2]
[423145869,1779892281000,-300.0,0.00035586,2]
[423145878,1779892281000,-379.1644297,0.00035586,2]
[423145870,1779892281000,-1148.83589152,0.00035586,2]
[423145882,1779892281000,-300.0,0.00035586,2]
[423145877,1779892281000,-300.0,0.00035586,2]
[423145881,1779892281000,-578.28315025,0.00035586,2]
[423145889,1779892281000,-484.76763572,0.00035586,2]
[423145876,1779892281000,-594.79850986,0.00035586,2]
[423145874,1779892281000,-300.0,0.00035586,2]
[423145887,1779892281000,-300.0,0.00035586,2]
[423145891,1779892281000,-300.7543397,0.00035586,2]
[423145910,1779892281000,-528.48327171,0.00035586,2]
[423145884,1779892281000,-300.0,0.00035586,2]
[423145892,1779892281000,-300.0,0.00035586,2]
[423145859,1779892281000,-300.0,0.00035586,2]
[423145872,1779892281000,-300.0,0.00035586,2]
[423145875,1779892281000,-300.0,0.00035586,2]
[423145860,1779892281000,-344.45437934,0.00035586,2]
[423145843,1779892281000,-1068.40163352,0.00035586,2]
[423145863,1779892281000,-300.0,0.00035586,2]
[423145873,1779892281000,-1634.44392223,0.00035586,2]
[423145844,1779892281000,-894.65434383,0.00035586,2]
[423145850,1779892281000,-300.99795142,0.00035586,2]
[423145853,1779892281000,-300.0,0.00035586,2]
[423145846,1779892281000,-579.95267857,0.00035586,2]
[423145858,1779892281000,-1263.96825586,0.00035586,2]
[423145861,1779892281000,-527.62572404,0.00035586,2]
[423145837,1779892281000,-300.0,0.00035586,2]
[423145857,1779892281000,-300.0,0.00035586,2]
[423145836,1779892281000,-300.0,0.00035586,2]
[423145849,1779892281000,-300.0,0.00035586,2]
[423145856,1779892281000,-300.0,0.00035586,2]
[423145852,1779892281000,-548.12530879,0.00035586,2]
[423145865,1779892281000,-300.0,0.00035586,2]
[423145841,1779892281000,-300.0,0.00035586,2]
[423145855,1779892281000,-300.0,0.00035586,2]
[423145834,1779892281000,-300.0,0.00035586,2]
[423145854,1779892281000,-300.0,0.00035586,2]
[423145842,1779892281000,-528.48327171,0.00035586,2]
[423145835,1779892281000,-300.0,0.00035586,2]
[423145838,1779892281000,-605.31118564,0.00035586,2]
[423145845,1779892281000,-727.07827244,0.00035586,2]
[423145864,1779892281000,-300.0,0.00035586,2]
[423145840,1779892281000,-300.0,0.00035586,2]
[423145839,1779892281000,-300.0,0.00035586,2]
[423145848,1779892281000,-300.0,0.00035586,2]
[423145862,1779892281000,-300.0,0.00035586,2]
[423145851,1779892281000,-351.10144345,0.00035586,2]
[423145906,1779892281000,-300.0,0.00035586,2]
[423145943,1779892281000,-300.0,0.00035586,2]
[423145893,1779892281000,-361.3543706,0.00035586,2]
[423145935,1779892281000,-300.0,0.00035586,2]
[423145916,1779892281000,-300.0,0.00035586,2]
[423145917,1779892281000,-300.0,0.00035586,2]
[423145930,1779892281000,-300.0,0.00035586,2]
[423145936,1779892281000,-1148.83589152,0.00035586,2]
[423145921,1779892281000,-300.0,0.00035586,2]
[423145934,1779892281000,-300.09384644,0.00035586,2]
[423145919,1779892281000,-300.0,0.00035586,2]
[423145922,1779892281000,-300.0,0.00035586,2]
[423145920,1779892281000,-300.0,0.00035586,2]
[423145924,1779892281000,-300.0,0.00035586,2]
[423145931,1779892281000,-300.0,0.00035586,2]
[423145944,1779892281000,-594.79850986,0.00035586,2]
[423145942,1779892281000,-300.0,0.00035586,2]
[423145952,1779892281000,-300.0,0.00035586,2]
[423145945,1779892281000,-300.0,0.00035586,2]
[423145925,1779892281000,-1263.96825586,0.00035586,2]
[423145926,1779892281000,-387.03054415,0.00035586,2]
[423145937,1779892281000,-310.02493426,0.00035586,2]
[423145947,1779892281000,-464.48677942,0.00035586,2]
[423145939,1779892281000,-300.0,0.00035586,2]
[423145923,1779892281000,-300.0,0.00035586,2]
[423145946,1779892281000,-300.0,0.00035586,2]
[423145951,1779892281000,-452.52893397,0.00035586,2]
[423145938,1779892281000,-300.0,0.00035586,2]
[423145894,1779892281000,-1096.2926835,0.00035586,2]
[423145950,1779892281000,-300.0,0.00035586,2]
[423145918,1779892281000,-300.99795142,0.00035586,2]
[423145948,1779892281000,-300.0,0.00035586,2]
[423145929,1779892281000,-300.0,0.00035586,2]
[423145896,1779892281000,-499.37863486,0.00035586,2]
[423145933,1779892281000,-950.32029804,0.00035586,2]
[423145895,1779892281000,-300.0,0.00035586,2]
[423145902,1779892281000,-300.0,0.00035586,2]
[423145903,1779892281000,-300.0,0.00035586,2]
[423145911,1779892281000,-1068.40163352,0.00035586,2]
[423145867,1779892281000,-950.32029804,0.00035586,2]
[423145879,1779892281000,-464.48677942,0.00035586,2]
[423145904,1779892281000,-300.0,0.00035586,2]
[423145905,1779892281000,-605.31118564,0.00035586,2]
[423145886,1779892281000,-300.0,0.00035586,2]
[423145890,1779892281000,-310.28230408,0.00035586,2]
[423145901,1779892281000,-376.20103625,0.00035586,2]
[423145899,1779892281000,-300.0,0.00035586,2]
[423145885,1779892281000,-300.0,0.00035586,2]
[423145908,1779892281000,-300.0,0.00035586,2]
[423145949,1779892281000,-578.28315025,0.00035586,2]
[423145932,1779892281000,-865.6208675,0.00035586,2]
[423145927,1779892281000,-344.45437934,0.00035586,2]
[423145928,1779892281000,-527.62572404,0.00035586,2]
[423145941,1779892281000,-378.27714322,0.00035586,2]
[423145915,1779892281000,-302.21937029,0.00035586,2]
[423145940,1779892281000,-1634.44392223,0.00035586,2]
[423145898,1779892281000,-300.0,0.00035586,2]
[423145900,1779892281000,-493.38669858,0.00035586,2]
[423145880,1779892281000,-300.0,0.00035586,2]
[423145909,1779892281000,-300.0,0.00035586,2]
[423145914,1779892281000,-300.0,0.00035586,2]
[423146028,1779892282000,-151.0,0.00035911,7]
[423146009,1779892282000,-605.25895332,0.0003591,120]
[423145998,1779892282000,-1000.0,0.00035852,14]
[423146042,1779892282000,-153.66,0.00035911,7]
[423146024,1779892282000,-1183.951803,0.00035911,7]
[423146019,1779892282000,-171495.5359737,0.00035911,2]
[423145954,1779892282000,-462.613322,0.00035586,7]
[423145994,1779892282000,-300.0,0.0003581,10]
[423146054,1779892282000,-161.92,0.00035911,2]
[423146035,1779892282000,-162.51,0.00035911,7]
[423146025,1779892282000,-1183.951803,0.00035911,7]
[423146027,1779892282000,-1183.951806,0.00035911,7]
[423146013,1779892282000,-500.0,0.0003591,15]
[423146045,1779892282000,-462.613322,0.00035911,7]
[423146006,1779892282000,-2000.0,0.0003591,2]
[423145962,1779892282000,-4515.01183057,0.0003561,2]
[423145965,1779892282000,-1000.0,0.00035616,10]
[423145989,1779892282000,-1040.0,0.00035753,30]
[423145996,1779892282000,-33218.9209,0.00035811,2]
[423146015,1779892282000,-500.0,0.0003591,7]
[423146031,1779892282000,-151.0,0.00035911,7]
[423146049,1779892282000,-1555.496535,0.00035911,7]
[423146062,1779892282000,-2157.14243826,0.00035995,7]
[423145953,1779892282000,-462.613322,0.00035586,7]
[423145971,1779892282000,-1000.0,0.00035616,10]
[423145975,1779892282000,-293.646211,0.00035717,5]
[423145990,1779892282000,-190.0,0.00035753,30]
[423146021,1779892282000,-159.23,0.00035911,7]
[423145991,1779892282000,-303.25591245,0.0003577,2]
[423146051,1779892282000,-187.442691,0.00035911,7]
[423145988,1779892282000,-189.0,0.00035753,30]
[423146038,1779892282000,-206.43,0.00035911,30]
[423145973,1779892282000,-1000.0,0.00035616,10]
[423145980,1779892282000,-254.0,0.00035725,30]
[423145982,1779892282000,-471.0,0.00035725,30]
[423146000,1779892282000,-1000.0,0.000359,13]
[423146048,1779892282000,-1555.496535,0.00035911,7]
[423146060,1779892282000,-2005.9555727,0.00035995,7]
[423145995,1779892282000,-300.0,0.0003581,10]
[423145999,1779892282000,-213.93849686,0.00035855,2]
[423146005,1779892282000,-500.0,0.0003591,120]
[423146029,1779892282000,-151.0,0.00035911,7]
[423146036,1779892282000,-1382.569618,0.00035911,7]
[423146056,1779892282000,-258.4685876,0.00035929,2]
[423146053,1779892282000,-161.92,0.00035911,2]
[423145958,1779892282000,-1555.496535,0.00035586,7]
[423145968,1779892282000,-1000.0,0.00035616,10]
[423145972,1779892282000,-1000.0,0.00035616,10]
[423145997,1779892282000,-526.5087779,0.00035847,2]
[423146034,1779892282000,-158.74,0.00035911,30]
[423146046,1779892282000,-462.613325,0.00035911,7]
[423146068,1779892282000,-223.0,0.00036064,120]
[423145969,1779892282000,-1000.0,0.00035616,10]
[423145974,1779892282000,-246.37,0.00035616,2]
[423145979,1779892282000,-158.0,0.00035725,30]
[423146039,1779892282000,-1382.569618,0.00035911,7]
[423146069,1779892282000,-449.42469043,0.00036067,32]
[423146057,1779892282000,-776.02,0.00035952,2]
[423146011,1779892282000,-500.0,0.0003591,120]
[423146023,1779892282000,-150.0,0.00035911,2]
[423146063,1779892282000,-1299.03083609,0.00035995,7]
[423145957,1779892282000,-1555.496535,0.00035586,7]
[423145978,1779892282000,-183.0,0.00035725,30]
[423146030,1779892282000,-151.0,0.00035911,7]
[423146059,1779892282000,-776.02,0.00035952,2]
[423145976,1779892282000,-4309.17,0.00035719,60]
[423146044,1779892282000,-462.613322,0.00035911,7]
[423146047,1779892282000,-1555.496535,0.00035911,7]
[423146058,1779892282000,-776.02,0.00035952,2]
[423146066,1779892282000,-205.77743576,0.00036,120]
[423145963,1779892282000,-323.24,0.00035616,60]
[423145961,1779892282000,-187.442691,0.00035586,7]
[423145981,1779892282000,-254.0,0.00035725,30]
[423145984,1779892282000,-157.0,0.00035725,30]
[423145986,1779892282000,-218.0,0.00035725,30]
[423146008,1779892282000,-2000.0,0.0003591,2]
[423146010,1779892282000,-2000.0,0.0003591,2]
[423146018,1779892282000,-500.0,0.0003591,120]
[423146020,1779892282000,-150.0,0.00035911,2]
[423146041,1779892282000,-166.53,0.00035911,7]
[423146043,1779892282000,-462.613322,0.00035911,7]
[423146040,1779892282000,-1382.569621,0.00035911,7]
[423146064,1779892282000,-778.01152156,0.00036,120]
[423146078,1779892282000,-644.79446245,0.00036068,30]
[423146076,1779892282000,-599.60298507,0.00036068,30]
[423146080,1779892282000,-693.39197629,0.00036068,30]
[423146079,1779892282000,-668.65185756,0.00036068,30]
[423146081,1779892282000,-719.04747942,0.00036068,30]
[423146075,1779892282000,-578.20924308,0.00036068,30]
[423146071,1779892282000,-518.5,0.00036068,30]
[423146072,1779892282000,-151.0,0.00036068,30]
[423146055,1779892282000,-161.92,0.00035911,2]
[423146070,1779892282000,-500.0,0.00036068,30]
[423146077,1779892282000,-621.78829552,0.00036068,30]
[423146073,1779892282000,-537.6845,0.00036068,30]
[423146032,1779892282000,-151.0,0.00035911,7]
[423146026,1779892282000,-1183.951803,0.00035911,7]
[423146074,1779892282000,-557.5788265,0.00036068,30]
[423145993,1779892282000,-38598.39786137,0.0003577,2]
[423146004,1779892282000,-500.0,0.0003591,30]
[423145977,1779892282000,-6735.6018701,0.00035721,2]
[423145987,1779892282000,-500.0,0.00035728,120]
[423146037,1779892282000,-1382.569618,0.00035911,7]
[423146050,1779892282000,-1555.496531,0.00035911,7]
[423146067,1779892282000,-713.25975205,0.00036,120]
[423145955,1779892282000,-462.613322,0.00035586,7]